bitfinex/quotes_BTCUSD_20250109
["timestamp","ask_amount","ask_price","bid_price","bid_amount"]
[1736453948271,0.15,91880.0,91879.0,0.30491181]
[1736453948643,0.15,91880.0,91879.0,0.30391181]
[1736453948989,0.15,91880.0,91879.0,0.30991181]
[1736453949189,0.15,91880.0,91879.0,0.30591181]
[1736453949388,0.15,91880.0,91879.0,0.30391181]
[1736453949589,0.151,91880.0,91879.0,0.30791181]
[1736453949799,0.15,91880.0,91879.0,0.30591181]
[1736453950096,0.15,91880.0,91879.0,0.30991181]
[1736453950542,0.15,91880.0,91879.0,0.30591181]
[1736453950763,0.15,91880.0,91879.0,0.30991181]
[1736453950979,0.151,91880.0,91879.0,0.30991181]
[1736453951182,0.2299,91880.0,91879.0,0.30791181]
[1736453951426,0.23013836,91880.0,91879.0,0.30791181]
[1736453951805,0.00217549,91880.0,91879.0,0.30791181]
[1736453951954,0.00193713,91880.0,91879.0,0.31091181]
[1736453952156,0.435342,91882.0,91879.0,0.30691181]
[1736453952357,0.001,91880.0,91879.0,0.30191179]
[1736453952559,0.001,91880.0,91879.0,0.29891179]
[1736453952759,0.435342,91882.0,91879.0,0.29491179]
[1736453953008,0.435342,91882.0,91879.0,0.29691179]
[1736453953416,0.435342,91882.0,91879.0,0.29491179]
[1736453953617,0.001,91880.0,91879.0,0.29891179]
[1736453954024,0.001,91880.0,91879.0,0.29491179]
[1736453954025,0.217675,91880.0,91879.0,0.29491179]
[1736453954435,0.21791734,91880.0,91879.0,0.29691179]
[1736453954855,0.36791734,91880.0,91879.0,0.29691179]
[1736453955080,0.36791734,91880.0,91879.0,0.29491179]
[1736453955285,0.36781734,91880.0,91879.0,0.29991179]
[1736453955683,0.36781734,91880.0,91879.0,0.29491179]
[1736453955890,0.36781734,91880.0,91879.0,0.29791179]
[1736453956085,0.36781734,91880.0,91879.0,0.29891179]
[1736453957177,0.367575,91880.0,91879.0,0.29415216]
[1736453957395,0.367575,91880.0,91879.0,0.28515214]
[1736453958668,0.36782013,91880.0,91879.0,0.28515214]
[1736453959846,0.36782013,91880.0,91879.0,0.26338414]
[1736453960171,0.46782013,91880.0,91879.0,0.17631214]
[1736453960380,0.56782013,91880.0,91879.0,0.17231214]
[1736453960580,0.61732013,91880.0,91879.0,0.17231214]
[1736453960819,0.61832013,91880.0,91879.0,0.17231214]
[1736453961031,0.51832013,91880.0,91879.0,0.17231214]
[1736453961237,0.62032013,91880.0,91879.0,0.17231214]
[1736453961632,0.62432013,91880.0,91879.0,0.17231214]
[1736453962060,0.62032013,91880.0,91879.0,0.17231214]
[1736453962288,0.62032013,91880.0,91879.0,0.16331212]
[1736453962506,0.221575,91880.0,91879.0,0.16331212]
[1736453962724,0.012,91880.0,91879.0,0.16331212]
[1736453962990,0.004,91880.0,91879.0,0.16331212]
[1736453963407,0.012,91880.0,91879.0,0.16331212]
[1736453963618,0.217672,91882.0,91879.0,0.16331212]
[1736453963831,0.15,91881.0,91879.0,0.16331212]
[1736453964036,0.15,91881.0,91879.0,0.16531212]
[1736453964037,0.220675,91880.0,91879.0,0.16531212]
[1736453964241,0.220675,91880.0,91879.0,0.16331212]
[1736453964446,0.217675,91880.0,91879.0,0.16331212]
[1736453964891,0.217675,91880.0,91879.0,0.16431212]
[1736453965086,0.490075,91880.0,91879.0,0.16431212]
[1736453965305,0.513175,91880.0,91879.0,0.16331212]
[1736453965522,0.613175,91880.0,91879.0,0.16331212]
[1736453965739,0.614175,91880.0,91879.0,0.16431212]
[1736453966014,0.61442688,91880.0,91879.0,0.16431212]
[1736453966581,0.61342688,91880.0,91879.0,0.16431212]
[1736453967057,0.61342688,91880.0,91879.0,0.16331212]
[1736453967269,0.61342688,91880.0,91879.0,0.1543121]
[1736453967486,0.62142688,91880.0,91879.0,0.1543121]
[1736453968166,0.62442688,91880.0,91879.0,0.1543121]
[1736453968582,0.62142688,91880.0,91879.0,0.1543121]
[1736453968791,0.61642688,91880.0,91879.0,0.1543121]
[1736453969450,0.51642688,91880.0,91879.0,0.1543121]
[1736453969660,0.62411208,91880.0,91879.0,0.1543121]
[1736453969865,0.61611208,91880.0,91879.0,0.1543121]
[1736453970098,0.63292794,91880.0,91879.0,0.1543121]
[1736453970307,0.63992794,91880.0,91879.0,0.1543121]
[1736453970516,0.53592794,91880.0,91879.0,0.1533121]
[1736453970739,0.63592794,91880.0,91879.0,0.1533121]
[1736453970937,0.63292794,91880.0,91879.0,0.1533121]
[1736453971176,0.63292794,91880.0,91879.0,0.1033121]
[1736453971386,0.71682794,91880.0,91879.0,0.1033121]
[1736453971806,0.61382794,91880.0,91879.0,0.1033121]
[1736453972021,0.61382794,91880.0,91879.0,0.03510403]
[1736453972221,0.61682794,91880.0,91879.0,0.03510403]
[1736453972357,0.62182794,91880.0,91879.0,0.02610401]
[1736453972762,0.47132794,91880.0,91879.0,0.02610401]
[1736453972964,0.24017606,91880.0,91879.0,0.02610401]
[1736453973165,0.24617606,91880.0,91879.0,0.02610401]
[1736453973387,0.23717606,91880.0,91879.0,0.02610401]
[1736453973593,0.2193602,91880.0,91879.0,0.02610401]
[1736453973772,0.007,91880.0,91879.0,0.02610401]
[1736453974014,0.002,91880.0,91879.0,0.02610401]
[1736453974231,0.176,91920.0,91880.0,0.0822]
[1736453974431,0.217615,91906.0,91885.0,0.217661]
[1736453974651,0.217539,91938.0,91881.0,0.023]
[1736453974850,0.217539,91938.0,91913.0,0.217596]
[1736453975062,0.0001704,91947.0,91913.0,0.482691]
[1736453975279,0.0001704,91947.0,91913.0,0.482693]
[1736453975280,0.2177074,91939.0,91913.0,0.482693]
[1736453975497,0.15,91938.0,91913.0,0.482693]
[1736453975694,0.0001704,91939.0,91915.0,0.217592]
[1736453976168,0.0001704,91939.0,91915.0,0.216592]
[1736453976169,0.00022006,91917.0,91915.0,0.216592]
[1736453976382,0.00022006,91917.0,91913.0,0.0485]
[1736453976809,0.00122006,91917.0,91914.0,0.217594]
[1736453977014,0.00022006,91917.0,91914.0,0.217594]
[1736453977222,0.00022006,91917.0,91913.0,0.03949998]
[1736453977426,0.00122006,91917.0,91913.0,0.03949998]
[1736453977640,0.00122006,91917.0,91913.0,0.04149998]
[1736453978075,0.00122006,91917.0,91914.0,0.217594]
[1736453978287,0.00022006,91917.0,91913.0,0.03949998]
[1736453979134,0.00122006,91917.0,91914.0,0.002]
[1736453979566,0.00022006,91917.0,91909.0,0.01288]
[1736453979773,0.00222006,91917.0,91913.0,0.005]
[1736453980171,0.00022006,91917.0,91909.0,0.01288]
[1736453980346,0.00122006,91917.0,91914.0,0.002]
[1736453980724,0.00022006,91917.0,91910.0,0.217604]
[1736453980929,0.00222006,91917.0,91914.0,0.003]
[1736453981984,0.00222006,91917.0,91915.0,0.217592]
[1736453982187,0.00122006,91917.0,91915.0,0.217592]
[1736453982403,0.00122006,91917.0,91914.0,0.003]
[1736453982572,0.15,91915.0,91914.0,0.002]
[1736453982774,0.15135988,91915.0,91914.0,0.002]
[1736453982972,0.00045397,91915.0,91910.0,0.003]
[1736453983426,0.217589,91916.0,91915.0,0.002]
[1736453983645,0.217596,91914.0,91910.0,0.003]
[1736453984001,0.217596,91914.0,91886.0,0.0132]
[1736453984214,0.1,91921.0,91882.0,0.048]
[1736453984423,0.1,91913.0,91882.0,0.0001497]
[1736453984621,0.217648,91892.0,91882.0,0.0001497]
[1736453984815,0.217638,91896.0,91882.0,0.0001497]
[1736453985386,0.15,91893.0,91882.0,0.0001497]
[1736453986411,0.15,91906.0,91883.0,0.217668]
[1736453986707,0.217604,91910.0,91883.0,0.217668]
[1736453986708,0.001,91893.0,91883.0,0.217668]
[1736453986907,0.217604,91910.0,91891.0,0.217647]
[1736453987130,0.001,91893.0,91891.0,0.217647]
[1736453987483,0.15,91909.0,91893.0,0.081]
[1736453987637,0.15,91909.0,91884.0,0.023]
[1736453987837,0.001,91906.0,91885.0,0.217663]
[1736453988048,0.15,91904.0,91883.0,0.003]
[1736453988257,0.15,91892.0,91883.0,0.003]
[1736453989012,0.15,91892.0,91882.0,0.0001497]
[1736453989237,0.15,91892.0,91891.0,0.003]
[1736453989491,0.001,91893.0,91891.0,0.003]
[1736453989659,0.002,91893.0,91891.0,0.003]
[1736453989861,0.15,91896.0,91883.0,0.217666]
[1736453990073,0.15,91896.0,91883.0,0.023]
[1736453990271,0.001,91892.0,91882.0,0.0021497]
[1736453990475,0.00012651,91901.0,91883.0,0.0132]
[1736453990705,0.15,91906.0,91894.0,0.21764]
[1736453990881,0.15,91906.0,91894.0,0.21664]
[1736453991449,0.15,91911.0,91894.0,0.21664]
[1736453991857,0.15,91909.0,91894.0,0.21664]
[1736453992072,0.15,91909.0,91891.0,0.003]
[1736453992288,0.15,91896.0,91873.0,0.0001851]
[1736453992491,0.15,91894.0,91883.0,0.003]
[1736453992925,0.001,91892.0,91882.0,0.001]
[1736453993122,0.367643,91894.0,91879.0,0.01715365]
[1736453993316,0.367643,91894.0,91891.0,0.001]
[1736453993317,0.15,91894.0,91891.0,0.001]
[1736453993554,0.217621,91903.0,91891.0,0.001]
[1736453993780,0.217599,91912.0,91886.0,0.21766]
[1736453993983,0.15,91909.0,91893.0,0.217644]
[1736453994400,0.15,91909.0,91887.0,0.217658]
[1736453994610,0.001,91894.0,91891.0,0.002]
[1736453995510,0.217539,91938.0,91892.0,0.023]
[1736453995720,0.217588,91917.0,91893.0,0.0816]
[1736453996560,0.217588,91917.0,91893.0,0.0826]
[1736453996790,0.21761,91908.0,91893.0,0.0826]
[1736453996999,0.217634,91898.0,91893.0,0.001]
[1736453997218,0.217579,91921.0,91893.0,0.001]
[1736453997444,0.217627,91900.0,91890.0,0.00515998]
[1736453997651,0.15,91899.0,91893.0,0.001]
[1736453997859,0.15,91895.0,91879.0,0.09875365]
[1736453998085,0.217606,91909.0,91879.0,0.01715365]
[1736453998086,0.15,91881.0,91879.0,0.01715365]
[1736453998293,0.367675,91880.0,91879.0,0.01715365]
[1736453998956,0.365675,91880.0,91879.0,0.01715365]
[1736454000041,0.365675,91880.0,91879.0,0.01915365]
[1736454000455,0.36595206,91880.0,91879.0,0.01915365]
[1736454000682,0.46595206,91880.0,91879.0,0.01915365]
[1736454000894,0.566675,91880.0,91879.0,0.00500065]
[1736454001113,0.46695206,91880.0,91879.0,0.005]
[1736454001358,0.25,91879.0,91875.0,0.0005]
[1736454002403,0.31572483,91880.0,91854.0,0.01808058]
[1736454002404,0.15,91856.0,91854.0,0.01808058]
[1736454002581,0.217729,91857.0,91854.0,0.01808058]
[1736454002582,0.367734,91855.0,91854.0,0.01808058]
[1736454003693,0.15,91855.0,91854.0,0.02008058]
[1736454004138,0.15,91855.0,91854.0,0.01808058]
[1736454004349,0.15,91855.0,91854.0,0.02008058]
[1736454004581,0.15,91855.0,91854.0,0.01808058]
[1736454005637,0.15168136,91855.0,91854.0,0.01808058]
[1736454006057,0.15268136,91855.0,91854.0,0.02508058]
[1736454006292,0.151,91855.0,91854.0,0.02508058]
[1736454006539,0.151,91855.0,91854.0,0.01808058]
[1736454006540,0.15,91855.0,91854.0,0.01808058]
[1736454006715,0.15,91855.0,91854.0,0.02008058]
[1736454007168,0.15,91855.0,91854.0,0.01808058]
[1736454007375,0.15,91855.0,91854.0,0.01008056]
[1736454007819,0.217722,91861.0,91854.0,0.01008056]
[1736454008200,0.21773,91857.0,91854.0,0.01008056]
[1736454008544,0.43546,91857.0,91854.0,0.01008056]
[1736454008947,0.43546,91857.0,91854.0,0.00908056]
[1736454009173,0.43546,91857.0,91854.0,0.01008056]
[1736454009579,0.43546,91857.0,91854.0,0.00908056]
[1736454010060,0.217734,91855.0,91854.0,0.00908056]
[1736454010274,0.467734,91855.0,91854.0,0.00908056]
[1736454010681,0.56808515,91855.0,91854.0,0.00908056]
[1736454011326,0.36808515,91855.0,91854.0,0.00908056]
[1736454011535,0.467734,91855.0,91854.0,0.00908056]
[1736454012364,0.467734,91855.0,91854.0,0.00108054]
[1736454012652,0.467734,91855.0,91831.0,1.76196661]
[1736454012653,0.25,91835.0,91831.0,1.56208761]
[1736454012767,0.367862,91801.0,91800.0,0.0821875]
[1736454012973,0.1,91799.0,91796.0,0.00042644]
[1736454013189,0.317872,91797.0,91796.0,0.00042644]
[1736454013390,0.21728609,91801.0,91781.0,2e-08]
[1736454013589,0.00136213,91800.0,91781.0,2e-08]
[1736454013792,0.1,91814.0,91781.0,2e-08]
[1736454014006,0.217867,91799.0,91782.0,0.1]
[1736454014228,0.00136183,91798.0,91781.0,0.00049666]
[1736454014436,0.00136189,91799.0,91781.0,0.00049666]
[1736454014654,0.217868,91799.0,91781.0,0.00049666]
[1736454014864,0.00136195,91798.0,91781.0,0.00049666]
[1736454015076,0.217857,91803.0,91781.0,0.00049666]
[1736454015286,0.15,91784.0,91781.0,0.00049666]
[1736454015488,0.367907,91782.0,91781.0,0.00049666]
[1736454016715,0.373907,91782.0,91781.0,0.00049666]
[1736454016938,0.367907,91782.0,91781.0,0.00049666]
[1736454017142,0.21785,91807.0,91782.0,0.1]
[1736454017352,0.00136192,91806.0,91786.0,0.098]
[1736454017551,0.00136184,91820.0,91793.0,0.315881]
[1736454017752,0.217847,91808.0,91793.0,0.098]
[1736454017960,0.04354695,91834.0,91793.0,0.098]
[1736454017961,0.217814,91822.0,91804.0,0.098]
[1736454018182,0.002,91861.0,91817.0,0.098]
[1736454018392,0.01288,91883.0,91841.0,0.217767]
[1736454018393,0.00136135,91860.0,91841.0,0.217767]
[1736454018603,0.217719,91862.0,91847.0,0.06704887]
[1736454018604,0.217727,91858.0,91847.0,0.06704887]
[1736454018813,0.217718,91862.0,91842.0,0.217765]
[1736454018814,0.13295113,91899.0,91845.0,0.06704887]
[1736454019014,0.03295113,91886.0,91850.0,0.06704887]
[1736454019227,0.217713,91865.0,91850.0,0.06604887]
[1736454019429,0.0007775,91864.0,91851.0,0.06604887]
[1736454019636,0.0007775,91883.0,91851.0,0.06604887]
[1736454019838,0.004,91858.0,91857.0,0.06604887]
[1736454020050,0.003,91861.0,91857.0,0.06604887]
[1736454020254,0.003,91861.0,91853.0,0.0754]
[1736454020467,0.003,91861.0,91860.0,0.06604887]
[1736454020665,0.003,91861.0,91860.0,0.28377087]
[1736454020874,0.003,91861.0,91860.0,0.30677087]
[1736454021473,0.0007775,91874.0,91863.0,0.06604887]
[1736454021674,0.15,91872.0,91863.0,0.06604887]
[1736454021811,0.1,91894.0,91859.0,0.217722]
[1736454021812,0.15,91886.0,91871.0,0.06604887]
[1736454022016,0.15,91878.0,91871.0,0.06604887]
[1736454022217,0.15,91878.0,91872.0,0.05704885]
[1736454022618,0.15,91876.0,91872.0,0.05704885]
[1736454023001,0.217679,91879.0,91872.0,0.05604885]
[1736454023197,0.217682,91877.0,91872.0,0.05604885]
[1736454023453,0.217682,91877.0,91863.0,0.05604885]
[1736454023650,0.217682,91877.0,91860.0,0.023]
[1736454023651,0.435365,91877.0,91860.0,0.023]
[1736454023856,0.217682,91877.0,91872.0,0.05604885]
[1736454024073,0.217659,91887.0,91872.0,0.05604885]
[1736454024074,0.217674,91881.0,91872.0,0.05604885]
[1736454024656,0.435348,91881.0,91872.0,0.05604885]
[1736454024861,0.217674,91881.0,91872.0,0.05604885]
[1736454025388,0.001,91879.0,91872.0,0.05604885]
[1736454025601,0.15,91880.0,91878.0,0.05604885]
[1736454025805,0.15,91880.0,91879.0,0.05604885]
[1736454026671,0.15,91888.0,91879.0,0.05504885]
[1736454026874,0.15,91888.0,91885.0,0.05504885]
[1736454027078,0.15,91888.0,91885.0,0.05404885]
[1736454027303,0.15,91888.0,91885.0,0.04504883]
[1736454027454,0.15,91886.0,91885.0,0.04504883]
[1736454027690,0.0001704,91893.0,91892.0,0.04504883]
[1736454027892,0.0001704,91893.0,91892.0,0.13244371]
[1736454028077,0.0001702,91916.0,91915.0,0.04504883]
[1736454028268,0.0001702,91916.0,91915.0,0.26264083]
[1736454028471,0.0001702,91916.0,91915.0,0.28564083]
[1736454028875,0.15,91914.0,91898.0,0.04504883]
[1736454029170,0.217605,91910.0,91904.0,0.04504883]
[1736454029383,0.0021702,91916.0,91915.0,0.002]
[1736454029595,0.217592,91915.0,91910.0,0.04504883]
[1736454029775,0.0011702,91916.0,91898.0,0.00014903]
[1736454029776,0.217628,91900.0,91898.0,0.00014903]
[1736454029972,0.0007775,91899.0,91898.0,0.00014903]
[1736454030189,0.217613,91907.0,91900.0,0.04504883]
[1736454030412,0.0011702,91916.0,91900.0,0.04504883]
[1736454030597,0.0007775,91915.0,91901.0,0.04504883]
[1736454031051,0.0007775,91915.0,91898.0,0.00014903]
[1736454031052,0.218596,91914.0,91911.0,0.04504883]
[1736454031302,0.217608,91909.0,91902.0,0.04504883]
[1736454031518,0.218596,91914.0,91903.0,0.04504883]
[1736454031519,0.15,91911.0,91903.0,0.04504883]
[1736454031713,0.15,91909.0,91903.0,0.04504883]
[1736454031969,0.15,91907.0,91903.0,0.04504883]
[1736454032174,0.15,91907.0,91902.0,0.04504883]
[1736454032349,0.15,91905.0,91902.0,0.03604881]
[1736454032729,0.15,91905.0,91898.0,0.00014903]
[1736454032730,0.15,91903.0,91898.0,0.00014903]
[1736454032930,0.15,91901.0,91898.0,0.00014903]
[1736454033134,0.15,91899.0,91898.0,0.00014903]
[1736454033997,0.217604,91910.0,91898.0,0.03619784]
[1736454034242,0.0001704,91939.0,91915.0,0.03604881]
[1736454034468,0.0001704,91939.0,91915.0,0.19638881]
[1736454034672,0.0001704,91939.0,91929.0,0.25360781]
[1736454035108,0.0001704,91939.0,91929.0,0.25260781]
[1736454035314,0.0001704,91939.0,91934.0,0.27559581]
[1736454035529,0.0001704,91939.0,91934.0,0.40009581]
[1736454035738,0.0001704,91939.0,91934.0,0.39909581]
[1736454035953,0.0001704,91939.0,91938.0,0.05804881]
[1736454036176,0.0001702,91948.0,91946.0,0.37456681]
[1736454036381,0.00032007,91947.0,91946.0,0.49070657]
[1736454036659,0.0001704,91954.0,91946.0,0.49070657]
[1736454036660,0.0001704,91954.0,91953.0,0.35055081]
[1736454036895,0.0001704,91954.0,91953.0,0.47785057]
[1736454037108,0.0001704,91954.0,91953.0,0.25055081]
[1736454037313,0.0001704,91954.0,91953.0,0.02404879]
[1736454037729,7.603e-05,91954.0,91953.0,0.02304879]
[1736454037936,0.16456112,91966.0,91953.0,0.02304879]
[1736454038139,0.267464,91970.0,91963.0,0.02304879]
[1736454038356,0.267464,91970.0,91947.0,0.13784]
[1736454038357,0.05,91970.0,91949.0,0.02204879]
[1736454038567,0.0007775,91968.0,91957.0,0.02204879]
[1736454038980,0.0007775,91968.0,91958.0,0.02104879]
[1736454039182,0.217486,91960.0,91958.0,0.02104879]
[1736454039359,0.217486,91960.0,91880.0,0.24640931]
[1736454039360,0.0007775,91959.0,91943.0,0.02104879]
[1736454039627,0.05,91970.0,91963.0,0.00076517]
[1736454039628,0.217469,91967.0,91963.0,0.00076517]
[1736454039829,0.217474,91965.0,91963.0,0.00076517]
[1736454040034,0.0007775,91964.0,91963.0,0.00076517]
[1736454040696,0.36749,91958.0,91957.0,0.004]
[1736454040906,0.217481,91962.0,91930.0,0.02104879]
[1736454040907,0.15,91931.0,91930.0,0.02104879]
[1736454041329,0.15,91931.0,91930.0,0.02119846]
[1736454042143,0.15,91931.0,91930.0,0.02419846]
[1736454042277,0.15,91931.0,91930.0,0.03319846]
[1736454042486,0.15,91931.0,91930.0,0.02119846]
[1736454042908,0.15,91931.0,91930.0,0.02519844]
[1736454043112,0.15,91931.0,91930.0,0.24275444]
[1736454043619,0.15,91931.0,91930.0,0.02519844]
[1736454043843,0.15,91931.0,91930.0,0.00311165]
[1736454044080,0.367578,91921.0,91920.0,0.01204877]
[1736454044338,0.15,91928.0,91898.0,0.217631]
[1736454044521,0.15,91906.0,91905.0,0.00201075]
[1736454044988,0.36763,91899.0,91898.0,0.00014903]
[1736454045202,0.10791394,91899.0,91898.0,0.00014903]
[1736454045870,0.32554394,91899.0,91898.0,0.00014903]
[1736454046080,0.1,91931.0,91900.0,0.00201075]
[1736454046306,0.1,91917.0,91900.0,0.00201075]
[1736454046513,0.21762,91903.0,91898.0,0.00014903]
[1736454046729,0.0007775,91902.0,91898.0,0.00014903]
[1736454046946,0.217625,91901.0,91898.0,0.00214903]
[1736454047151,0.21763,91899.0,91898.0,0.00214903]
[1736454047335,0.15,91897.0,91876.0,0.43052776]
[1736454047585,0.15,91895.0,91876.0,0.21284376]
[1736454047793,0.15,91893.0,91876.0,0.43052776]
[1736454048014,0.15,91891.0,91876.0,0.42052776]
[1736454048441,0.15,91889.0,91872.0,0.217693]
[1736454048645,0.15,91880.0,91867.0,0.217704]
[1736454049062,0.15,91880.0,91876.0,0.001]
[1736454049527,0.15,91880.0,91872.0,0.217694]
[1736454049735,0.15,91880.0,91876.0,0.006]
[1736454049921,0.15,91885.0,91872.0,0.217694]
[1736454050360,0.15,91883.0,91872.0,0.217694]
[1736454050575,0.001,91880.0,91876.0,0.008]
[1736454050819,0.15,91878.0,91876.0,0.008]
[1736454051237,0.367682,91877.0,91876.0,0.008]
[1736454052110,0.15,91871.0,91857.0,0.217728]
[1736454052299,0.15,91869.0,91857.0,0.20881298]
[1736454052717,0.15,91867.0,91854.0,0.0805]
[1736454053180,0.15,91867.0,91855.0,0.217734]
[1736454053387,0.15,91867.0,91861.0,0.217718]
[1736454053388,0.15014939,91867.0,91861.0,0.217718]
[1736454053564,0.15014939,91867.0,91862.0,0.217716]
[1736454053767,0.00014939,91867.0,91862.0,0.217716]
[1736454054198,0.00014939,91867.0,91862.0,0.435433]
[1736454054370,4.966e-05,91866.0,91862.0,0.435433]
[1736454055209,4.966e-05,91866.0,91857.0,0.218729]
[1736454055210,4.966e-05,91866.0,91857.0,0.217729]
[1736454055420,4.966e-05,91866.0,91858.0,0.217727]
[1736454055555,4.966e-05,91866.0,91862.0,0.001]
[1736454055970,0.00104966,91866.0,91862.0,0.006]
[1736454056382,4.966e-05,91866.0,91862.0,0.001]
[1736454056627,0.00104966,91866.0,91862.0,0.006]
[1736454057066,4.966e-05,91866.0,91855.0,0.217734]
[1736454057324,0.00104966,91866.0,91862.0,0.005]
[1736454058575,4.966e-05,91866.0,91860.0,0.21772]
[1736454059035,0.00104966,91866.0,91864.0,0.217712]
[1736454059214,4.966e-05,91866.0,91863.0,0.217714]
[1736454059655,4.966e-05,91866.0,91862.0,0.001]
[1736454059656,0.00104966,91866.0,91862.0,0.006]
[1736454059873,4.966e-05,91866.0,91863.0,0.217715]
[1736454060294,0.00104966,91866.0,91864.0,0.005]
[1736454060515,4.966e-05,91866.0,91858.0,0.217727]
[1736454060731,4.966e-05,91866.0,91860.0,0.001]
[1736454061090,4.966e-05,91866.0,91850.0,0.217746]
[1736454061302,4.966e-05,91866.0,91845.0,0.217757]
[1736454061498,4.966e-05,91866.0,91864.0,0.001]
[1736454061910,4.966e-05,91866.0,91850.0,0.01284]
[1736454062237,4.966e-05,91866.0,91854.0,0.07249998]
[1736454062397,0.00104966,91866.0,91862.0,0.007]
[1736454063008,4.966e-05,91866.0,91854.0,0.07249998]
[1736454063207,4.966e-05,91866.0,91855.0,0.03593732]
[1736454063411,4.966e-05,91866.0,91864.0,0.006]
[1736454063412,0.00104966,91866.0,91864.0,0.006]
[1736454063616,0.00104966,91866.0,91854.0,0.07149998]
[1736454063833,0.00104966,91866.0,91854.0,0.07249998]
[1736454064048,0.00104966,91866.0,91862.0,0.007]
[1736454064049,0.00204966,91866.0,91862.0,0.007]
[1736454064262,0.15,91864.0,91862.0,0.007]
[1736454064488,0.435421,91865.0,91862.0,0.007]
[1736454064489,0.367715,91863.0,91862.0,0.007]
[1736454065393,0.36777,91840.0,91835.0,0.01284]
[1736454065631,0.36777,91840.0,91821.0,0.0826]
[1736454065839,0.36777,91840.0,91819.0,0.09677342]
[1736454066495,0.367803,91826.0,91819.0,0.09677342]
[1736454066713,0.367803,91826.0,91806.0,0.09685852]
[1736454067376,0.367848,91807.0,91806.0,0.0879435]
[1736454067589,0.367862,91801.0,91800.0,0.3]
[1736454067802,0.15,91801.0,91800.0,0.3]
[1736454068040,0.15013538,91801.0,91800.0,0.3]
[1736454069130,0.00013538,91801.0,91800.0,0.540864]
[1736454069524,0.00013538,91801.0,91800.0,0.54081434]
[1736454069732,0.00013538,91801.0,91800.0,0.51781434]
[1736454069990,0.00013538,91801.0,91800.0,0.29995034]
[1736454070202,0.00013538,91801.0,91800.0,0.51781434]
[1736454070422,0.00013538,91801.0,91800.0,0.55890901]
[1736454070639,0.00013538,91801.0,91800.0,0.29995034]
[1736454071955,0.00013538,91801.0,91800.0,0.51781434]
[1736454072374,0.00013538,91801.0,91800.0,0.50881432]
[1736454072618,0.00013538,91801.0,91800.0,0.29095032]
[1736454072827,0.15013538,91801.0,91800.0,0.29095032]
[1736454077045,0.35013538,91801.0,91800.0,0.03837832]
[1736454077249,0.3679,91785.0,91784.0,8.51e-05]
[1736454077451,0.3679,91785.0,91781.0,2e-08]
[1736454077452,0.217921,91777.0,91763.0,0.69475958]
[1736454077687,0.435758,91794.0,91764.0,0.0774]
[1736454077893,0.1,91795.0,91763.0,0.69475958]
[1736454078109,0.15,91765.0,91763.0,0.69475958]
[1736454078319,0.36795,91764.0,91763.0,0.69475958]
[1736454079356,0.36809914,91764.0,91763.0,0.69475958]
[1736454081533,0.36809914,91764.0,91763.0,0.69073458]
[1736454081737,0.36831827,91764.0,91763.0,0.69073458]
[1736454081975,0.36809914,91764.0,91763.0,0.69073458]
[1736454082191,0.00014914,91764.0,91763.0,0.69073458]
[1736454082420,0.00014914,91764.0,91763.0,0.68173456]
[1736454082843,0.21809914,91764.0,91763.0,0.68173456]
[1736454083052,0.00014914,91764.0,91763.0,0.68173456]
[1736454084309,0.00014914,91764.0,91763.0,0.73033456]
[1736454084526,0.00014914,91764.0,91763.0,0.80773456]
[1736454085181,0.217842,91810.0,91766.0,0.1]
[1736454085398,0.00014967,91795.0,91767.0,0.01383748]
[1736454085606,0.217862,91801.0,91785.0,0.2179]
[1736454085822,0.1,91840.0,91797.0,0.0823]
[1736454086033,0.1,91848.0,91797.0,0.0823]
[1736454086034,0.217824,91817.0,91797.0,0.0823]
[1736454086243,0.217783,91835.0,91798.0,0.21895824]
[1736454086454,0.21777,91840.0,91799.0,0.00108923]
[1736454086660,0.217808,91824.0,91797.0,0.0823]
[1736454086870,0.03204695,91847.0,91808.0,0.217845]
[1736454086871,0.15,91833.0,91808.0,0.217845]
[1736454087091,0.217784,91834.0,91815.0,0.217828]
[1736454087290,0.217774,91838.0,91820.0,0.217816]
[1736454087501,0.03219665,91847.0,91797.0,0.0823]
[1736454087731,0.15,91822.0,91810.0,0.21784]
[1736454087939,0.15,91816.0,91797.0,0.0823]
[1736454088142,0.00018836,91821.0,91797.0,0.0823]
[1736454088377,0.173,91816.0,91784.0,0.0823]
[1736454088579,0.15,91788.0,91784.0,0.0823]
[1736454088998,0.15,91786.0,91784.0,0.0823]
[1736454089210,0.15,91786.0,91784.0,0.08279664]
[1736454089423,0.3679,91785.0,91784.0,0.08279664]
[1736454090317,0.3679,91785.0,91784.0,0.00049664]
[1736454091365,0.36808836,91785.0,91784.0,0.00175564]
[1736454091787,0.3679,91785.0,91784.0,0.00175564]
[1736454092409,0.217843,91809.0,91767.0,0.07285562]
[1736454092652,0.00018836,91792.0,91767.0,0.07285562]
[1736454092862,0.00018836,91792.0,91767.0,0.06285562]
[1736454092863,0.15,91770.0,91767.0,0.06285562]
[1736454093279,0.217938,91769.0,91767.0,0.06285562]
[1736454093488,0.15,91768.0,91767.0,0.06285562]
[1736454094756,0.15,91772.0,91767.0,0.05285562]
[1736454094968,0.217867,91800.0,91780.0,0.21791]
[1736454095181,0.00026216,91798.0,91767.0,0.05285562]
[1736454095435,0.00026216,91796.0,91767.0,0.05285562]
[1736454095645,0.15,91779.0,91767.0,0.05285562]
[1736454095861,0.15,91777.0,91767.0,0.05285562]
[1736454096093,0.15,91769.0,91767.0,0.05285562]
[1736454096318,0.15,91769.0,91763.0,0.68173456]
[1736454096521,0.217946,91766.0,91763.0,0.68173456]
[1736454096741,0.36795,91764.0,91763.0,0.68173456]
[1736454097395,0.36795,91764.0,91763.0,0.67273454]
[1736454098025,0.36844879,91764.0,91763.0,0.67273454]
[1736454099553,0.00049879,91764.0,91763.0,0.67273454]
[1736454100636,0.12049879,91769.0,91763.0,0.67273454]
[1736454100843,0.12049879,91769.0,91763.0,0.67288421]
[1736454101468,0.12049879,91769.0,91764.0,0.21795]